[Event "*** Titled Tuesday Blitz"]
[Site "Chess.com"]
[Date "2020.04.07"]
[Round "5"]
[White "Natalya_Buksa"]
[Black "Trickov"]
[Result "1-0"]
[WhiteElo "2457"]
[BlackElo "2235"]
[TimeControl "180+1"]
[EndTime "13:55:07 PDT"]
[Termination "Natalya_Buksa won by resignation"]

1. e4 {[%clk 0:03:00.9]} 1... c5 {[%clk 0:02:59.7]} 2. Nf3 {[%clk 0:03:00.5]}
2... d6 {[%clk 0:02:57.1]} 3. d4 {[%clk 0:03:00]} 3... Nf6 {[%clk 0:02:55.6]} 4.
Nc3 {[%clk 0:02:58.9]} 4... cxd4 {[%clk 0:02:55]} 5. Nxd4 {[%clk 0:02:59.7]}
5... a6 {[%clk 0:02:55.5]} 6. Bd3 {[%clk 0:02:57.6]} 6... e5 {[%clk 0:02:54.9]}
7. Nde2 {[%clk 0:02:58]} 7... Be7 {[%clk 0:02:54.5]} 8. O-O {[%clk 0:02:57.6]}
8... Be6 {[%clk 0:02:54.5]} 9. Ng3 {[%clk 0:02:50]} 9... Nbd7 {[%clk 0:02:52.7]}
10. a4 {[%clk 0:02:44.9]} 10... Rc8 {[%clk 0:02:51.6]} 11. a5 {[%clk 0:02:44.7]}
11... Qc7 {[%clk 0:02:50.4]} 12. Be3 {[%clk 0:02:44.8]} 12... Nc5 {[%clk
0:02:50]} 13. Nf5 {[%clk 0:02:42]} 13... Bxf5 {[%clk 0:02:49.4]} 14. exf5 {[%clk
0:02:41]} 14... d5 {[%clk 0:02:43.1]} 15. Bg5 {[%clk 0:02:37.2]} 15... Nxd3
{[%clk 0:02:26.6]} 16. cxd3 {[%clk 0:02:35.1]} 16... d4 {[%clk 0:02:00.4]} 17.
Bxf6 {[%clk 0:02:23.6]} 17... dxc3 {[%clk 0:01:52]} 18. Bxg7 {[%clk 0:02:13.4]}
18... c2 {[%clk 0:01:44.5]} 19. Qd2 {[%clk 0:02:09.1]} 19... Rg8 {[%clk
0:01:43.5]} 20. f6 {[%clk 0:02:09.4]} 20... Bc5 {[%clk 0:01:41.3]} 21. Qxc2
{[%clk 0:02:05.3]} 21... Bd4 {[%clk 0:01:34.8]} 22. Qe2 {[%clk 0:02:03.3]} 22...
Qc2 {[%clk 0:01:15.5]} 23. Qe4 {[%clk 0:01:58.7]} 23... Qc6 {[%clk 0:01:07.8]}
24. Qxh7 {[%clk 0:01:56.6]} 24... Kd7 {[%clk 0:01:06.4]} 25. Qh3+ {[%clk
0:01:55.7]} 25... Qe6 {[%clk 0:01:05.3]} 26. Qf3 {[%clk 0:01:55.5]} 26... Rc6
{[%clk 0:01:01.4]} 27. Rac1 {[%clk 0:01:50.1]} 27... Rgc8 {[%clk 0:00:59.5]} 28.
Rxc6 {[%clk 0:01:50.5]} 28... Qxc6 {[%clk 0:00:57.1]} 29. Qf5+ {[%clk 0:01:48]}
29... Qe6 {[%clk 0:00:54.6]} 30. Qe4 {[%clk 0:01:47.5]} 30... Qc6 {[%clk
0:00:54]} 31. Qe2 {[%clk 0:01:41.7]} 31... Qd5 {[%clk 0:00:44.8]} 32. h4 {[%clk
0:01:41.3]} 32... Qe6 {[%clk 0:00:17.2]} 33. h5 {[%clk 0:01:40.6]} 33... Qf5
{[%clk 0:00:16]} 34. h6 {[%clk 0:01:40.5]} 34... Rc6 {[%clk 0:00:13.9]} 35. Qe4
{[%clk 0:01:39.1]} 35... Qh5 {[%clk 0:00:08.7]} 36. h7 {[%clk 0:01:36.3]} 1-0

[Event "*** Titled Tuesday Blitz"]
[Site "Chess.com"]
[Date "2020.04.07"]
[Round "5"]
[White "cukin84"]
[Black "Leo_C"]
[Result "0-1"]
[WhiteElo "2107"]
[BlackElo "2321"]
[TimeControl "180+1"]
[EndTime "13:55:07 PDT"]
[Termination "Leo_C won by resignation"]

1. e4 {[%clk 0:03:00.9]} 1... Nf6 {[%clk 0:02:58.6]} 2. e5 {[%clk 0:03:00.5]}
2... Nd5 {[%clk 0:02:58.8]} 3. d4 {[%clk 0:03:00.1]} 3... d6 {[%clk 0:02:59.3]}
4. c4 {[%clk 0:03:00.2]} 4... Nb6 {[%clk 0:02:59.6]} 5. exd6 {[%clk 0:03:00.3]}
5... cxd6 {[%clk 0:02:59.5]} 6. Nc3 {[%clk 0:03:00.4]} 6... g6 {[%clk
0:02:59.9]} 7. Nf3 {[%clk 0:03:00.1]} 7... Bg7 {[%clk 0:02:59.1]} 8. Be2 {[%clk
0:02:59.7]} 8... O-O {[%clk 0:02:59.1]} 9. Be3 {[%clk 0:02:59.8]} 9... Bg4
{[%clk 0:02:59]} 10. O-O {[%clk 0:02:59.3]} 10... d5 {[%clk 0:02:57.7]} 11. c5
{[%clk 0:02:58.8]} 11... Nc8 {[%clk 0:02:57.7]} 12. h3 {[%clk 0:02:56]} 12...
Bxf3 {[%clk 0:02:57.7]} 13. Bxf3 {[%clk 0:02:55.7]} 13... e6 {[%clk 0:02:58.3]}
14. Rb1 {[%clk 0:02:53.9]} 14... a5 {[%clk 0:02:56.6]} 15. a3 {[%clk 0:02:53.2]}
15... Ne7 {[%clk 0:02:55.4]} 16. b4 {[%clk 0:02:53.2]} 16... Nf5 {[%clk
0:02:55.1]} 17. b5 {[%clk 0:02:52]} 17... Nd7 {[%clk 0:02:46.4]} 18. g4 {[%clk
0:02:43.6]} 18... Nxe3 {[%clk 0:02:42.5]} 19. fxe3 {[%clk 0:02:43.7]} 19... Bh6
{[%clk 0:02:41.4]} 20. Qe2 {[%clk 0:02:41.8]} 20... Qh4 {[%clk 0:02:40.6]} 21.
Bg2 {[%clk 0:02:41.1]} 21... Rac8 {[%clk 0:02:30.5]} 22. Nd1 {[%clk 0:02:32.3]}
22... Kh8 {[%clk 0:02:20.7]} 23. Qf2 {[%clk 0:02:31.6]} 23... Qe7 {[%clk
0:02:14.6]} 24. h4 {[%clk 0:02:25.2]} 24... f5 {[%clk 0:02:11.4]} 25. g5 {[%clk
0:02:25.2]} 25... Bg7 {[%clk 0:02:11.3]} 26. Nc3 {[%clk 0:02:21.9]} 26... Nxc5
{[%clk 0:02:09.8]} 27. Nxd5 {[%clk 0:02:17.5]} 27... exd5 {[%clk 0:02:10.1]} 28.
dxc5 {[%clk 0:02:17.9]} 28... Rxc5 {[%clk 0:02:10]} 29. Rfc1 {[%clk 0:02:14.3]}
29... Rfc8 {[%clk 0:02:07.6]} 30. Rxc5 {[%clk 0:02:13.7]} 30... Rxc5 {[%clk
0:02:07.7]} 31. a4 {[%clk 0:02:13.9]} 31... Qe5 {[%clk 0:01:59.7]} 32. Bf3
{[%clk 0:02:11.2]} 32... Rc3 {[%clk 0:01:54.5]} 33. Rd1 {[%clk 0:02:06.5]} 33...
Qxe3 {[%clk 0:01:47.8]} 34. Qxe3 {[%clk 0:02:04.5]} 34... Rxe3 {[%clk
0:01:47.5]} 35. Bxd5 {[%clk 0:02:04.6]} 35... b6 {[%clk 0:01:42.9]} 36. Rc1
{[%clk 0:02:03.9]} 36... Bd4 {[%clk 0:01:36.1]} 37. Kg2 {[%clk 0:01:59.8]} 37...
Bc5 {[%clk 0:01:36.1]} 38. Bf7 {[%clk 0:01:54.6]} 38... Kg7 {[%clk 0:01:35.1]}
39. Bd5 {[%clk 0:01:54.3]} 39... Rd3 {[%clk 0:01:32.6]} 40. Bb7 {[%clk 0:01:52]}
40... Rd4 {[%clk 0:01:31.8]} 41. Re1 {[%clk 0:01:46.9]} 41... Rxh4 {[%clk
0:01:24]} 42. Rd1 {[%clk 0:01:37.7]} 42... Rg4+ {[%clk 0:01:23]} 43. Kf3 {[%clk
0:01:37.7]} 43... Rxg5 {[%clk 0:01:23.1]} 44. Rd7+ {[%clk 0:01:37.3]} 44... Kh6
{[%clk 0:01:23.1]} 45. Bd5 {[%clk 0:01:33.9]} 45... Rg4 {[%clk 0:01:23]} 46. Bg8
{[%clk 0:01:33.7]} 46... Rxa4 {[%clk 0:01:22.8]} 47. Rxh7+ {[%clk 0:01:32.9]}
47... Kg5 {[%clk 0:01:23.4]} 48. Rd7 {[%clk 0:01:31.5]} 48... Ra3+ {[%clk
0:01:23.2]} 49. Ke2 {[%clk 0:01:30.6]} 49... Kf4 {[%clk 0:01:18.8]} 50. Bh7
{[%clk 0:01:29.2]} 50... Rg3 {[%clk 0:01:14.9]} 51. Rg7 {[%clk 0:01:27.4]} 51...
a4 {[%clk 0:01:09.9]} 52. Bxg6 {[%clk 0:01:25.6]} 52... a3 {[%clk 0:01:06.4]}
53. Ra7 {[%clk 0:01:20]} 53... Rxg6 {[%clk 0:01:04.8]} 0-1

[Event "*** Titled Tuesday Blitz"]
[Site "Chess.com"]
[Date "2020.04.07"]
[Round "5"]
[White "MikeSailer"]
[Black "tomozupan"]
[Result "1/2-1/2"]
[WhiteElo "2049"]
[BlackElo "2255"]
[TimeControl "180+1"]
[EndTime "13:55:08 PDT"]
[Termination "Game drawn by agreement"]

1. d4 {[%clk 0:03:00.9]} 1... Nf6 {[%clk 0:01:51.4]} 2. Bf4 {[%clk 0:02:37.2]}
2... g6 {[%clk 0:01:51.2]} 3. e3 {[%clk 0:02:37.2]} 3... Bg7 {[%clk 0:01:50.9]}
4. Nf3 {[%clk 0:02:37.7]} 4... O-O {[%clk 0:01:51]} 5. Be2 {[%clk 0:02:38.3]}
5... d5 {[%clk 0:01:51.3]} 6. O-O {[%clk 0:02:38.3]} 6... c5 {[%clk 0:01:51.3]}
7. c3 {[%clk 0:02:31.7]} 7... Nc6 {[%clk 0:01:51.4]} 8. Nbd2 {[%clk 0:02:29.4]}
8... b6 {[%clk 0:01:51.7]} 9. h3 {[%clk 0:02:28.9]} 9... a6 {[%clk 0:01:49.7]}
10. Ne5 {[%clk 0:02:29]} 10... Bb7 {[%clk 0:01:49]} 11. Ndf3 {[%clk 0:02:27.6]}
11... Nd7 {[%clk 0:01:48.6]} 12. Nxc6 {[%clk 0:02:21.9]} 12... Bxc6 {[%clk
0:01:47.9]} 13. a3 {[%clk 0:02:05.5]} 13... b5 {[%clk 0:01:47.7]} 14. b4 {[%clk
0:02:03.1]} 14... cxd4 {[%clk 0:01:43.5]} 15. cxd4 {[%clk 0:02:02.6]} 15... Rc8
{[%clk 0:01:42.8]} 16. Rc1 {[%clk 0:02:01.7]} 16... Qb6 {[%clk 0:01:39.6]} 17.
Qb3 {[%clk 0:01:40.9]} 17... Bb7 {[%clk 0:01:39.1]} 18. Bg5 {[%clk 0:01:30.3]}
18... f6 {[%clk 0:01:35.7]} 19. Bf4 {[%clk 0:01:29.3]} 19... Qe6 {[%clk
0:01:34.2]} 20. Bd3 {[%clk 0:01:22]} 20... Nb6 {[%clk 0:01:33.3]} 21. e4 {[%clk
0:01:16.9]} 21... Nc4 {[%clk 0:01:31.9]} 22. exd5 {[%clk 0:01:12.5]} 22... Bxd5
{[%clk 0:01:31.2]} 23. Rfe1 {[%clk 0:01:06.8]} 23... Qb6 {[%clk 0:01:25.3]} 24.
Bxc4 {[%clk 0:01:04.4]} 24... Bxc4 {[%clk 0:01:22.3]} 25. Qe3 {[%clk 0:01:04.1]}
25... e6 {[%clk 0:01:16.4]} 26. Nd2 {[%clk 0:00:54.4]} 26... Bd5 {[%clk
0:01:13.3]} 27. Nb3 {[%clk 0:00:53.1]} 27... Rc4 {[%clk 0:01:03.6]} 28. Nc5
{[%clk 0:00:51.5]} 28... Rc8 {[%clk 0:01:01.3]} 29. Rxc4 {[%clk 0:00:50]} 29...
Bxc4 {[%clk 0:00:59.7]} 30. Nxe6 {[%clk 0:00:45.9]} 30... Re8 {[%clk 0:00:59.1]}
31. d5 {[%clk 0:00:31.3]} 31... Qxe3 {[%clk 0:00:56.8]} 32. Rxe3 {[%clk
0:00:30.1]} 32... Bxd5 {[%clk 0:00:56.6]} 33. Nxg7 {[%clk 0:00:24.9]} 33... Rxe3
{[%clk 0:00:54.6]} 34. Bxe3 {[%clk 0:00:25]} 34... Kxg7 {[%clk 0:00:54.9]} 35.
f3 {[%clk 0:00:22.7]} 35... Kf7 {[%clk 0:00:52]} 1/2-1/2

[Event "*** Titled Tuesday Blitz"]
[Site "Chess.com"]
[Date "2020.04.07"]
[Round "5"]
[White "mokerslag"]
[Black "Gajuchess"]
[Result "0-1"]
[WhiteElo "2442"]
[BlackElo "2678"]
[TimeControl "180+1"]
[EndTime "13:55:09 PDT"]
[Termination "Gajuchess won on time"]

1. e4 {[%clk 0:03:00.9]} 1... c5 {[%clk 0:02:58.4]} 2. Nf3 {[%clk 0:03:00.5]}
2... d6 {[%clk 0:02:58.3]} 3. d4 {[%clk 0:03:01.4]} 3... cxd4 {[%clk 0:02:59.1]}
4. Nxd4 {[%clk 0:03:02.3]} 4... Nf6 {[%clk 0:02:59.7]} 5. Nc3 {[%clk 0:03:02.7]}
5... a6 {[%clk 0:03:00.3]} 6. Be2 {[%clk 0:03:03.2]} 6... e5 {[%clk 0:02:58.6]}
7. Nb3 {[%clk 0:03:03.4]} 7... Be7 {[%clk 0:02:59.1]} 8. Bg5 {[%clk 0:03:04.3]}
8... O-O {[%clk 0:02:56.7]} 9. Bxf6 {[%clk 0:03:00.9]} 9... Bxf6 {[%clk
0:02:56.2]} 10. Qd3 {[%clk 0:03:00.8]} 10... Nc6 {[%clk 0:02:54.5]} 11. Rd1
{[%clk 0:03:00.4]} 11... Nb4 {[%clk 0:02:51.5]} 12. Qxd6 {[%clk 0:02:30.5]}
12... Nxc2+ {[%clk 0:02:51.3]} 13. Kf1 {[%clk 0:02:30.7]} 13... Be6 {[%clk
0:02:26.2]} 14. Qxd8 {[%clk 0:02:07.1]} 14... Rfxd8 {[%clk 0:02:25.5]} 15. Nc5
{[%clk 0:02:08]} 15... Bc8 {[%clk 0:02:07.7]} 16. Nd5 {[%clk 0:01:49.7]} 16...
Nd4 {[%clk 0:02:02.3]} 17. Nxf6+ {[%clk 0:01:45.3]} 17... gxf6 {[%clk
0:02:03.2]} 18. Bc4 {[%clk 0:01:16.5]} 18... Be6 {[%clk 0:01:54.9]} 19. Bxe6
{[%clk 0:01:03.2]} 19... Nxe6 {[%clk 0:01:54.2]} 20. Nd7 {[%clk 0:00:34.9]}
20... Kg7 {[%clk 0:01:50.7]} 21. Ke2 {[%clk 0:00:34.2]} 21... Nd4+ {[%clk
0:01:44.6]} 22. Rxd4 {[%clk 0:00:29.7]} 22... exd4 {[%clk 0:01:45.5]} 23. Nb6
{[%clk 0:00:30.2]} 23... Rab8 {[%clk 0:01:45.4]} 24. Kd3 {[%clk 0:00:20.3]}
24... Rd6 {[%clk 0:01:35.1]} 25. Nd5 {[%clk 0:00:18.7]} 25... f5 {[%clk
0:01:34.9]} 26. f3 {[%clk 0:00:18.8]} 26... fxe4+ {[%clk 0:01:34.8]} 27. fxe4
{[%clk 0:00:19.7]} 27... Rc8 {[%clk 0:01:32.4]} 28. Re1 {[%clk 0:00:16.7]} 28...
f5 {[%clk 0:01:23.9]} 29. Ne7 {[%clk 0:00:05.7]} 29... fxe4+ {[%clk 0:01:22.7]}
30. Rxe4 {[%clk 0:00:02.5]} 30... Rc5 {[%clk 0:01:20.6]} 0-1

[Event "*** Titled Tuesday Blitz"]
[Site "Chess.com"]
[Date "2020.04.07"]
[Round "5"]
[White "attack2mateU"]
[Black "Chessterra87"]
[Result "0-1"]
[WhiteElo "2663"]
[BlackElo "2336"]
[TimeControl "180+1"]
[EndTime "13:55:10 PDT"]
[Termination "Chessterra87 won by checkmate"]

1. e4 {[%clk 0:03:00.9]} 1... c5 {[%clk 0:02:58.6]} 2. Nf3 {[%clk 0:03:00.5]}
2... e6 {[%clk 0:02:58.6]} 3. c3 {[%clk 0:02:55.4]} 3... d5 {[%clk 0:02:57.1]}
4. exd5 {[%clk 0:02:54.5]} 4... exd5 {[%clk 0:02:57.5]} 5. d4 {[%clk 0:02:54.5]}
5... Nf6 {[%clk 0:02:55.6]} 6. Bb5+ {[%clk 0:02:52.3]} 6... Bd7 {[%clk
0:02:51.9]} 7. Qe2+ {[%clk 0:02:51.7]} 7... Be7 {[%clk 0:02:44.8]} 8. dxc5
{[%clk 0:02:44.2]} 8... O-O {[%clk 0:02:42.8]} 9. Be3 {[%clk 0:02:41.2]} 9...
Re8 {[%clk 0:02:32.2]} 10. b4 {[%clk 0:02:26.2]} 10... Ng4 {[%clk 0:02:21.1]}
11. O-O {[%clk 0:02:04.9]} 11... Nxe3 {[%clk 0:02:02.5]} 12. fxe3 {[%clk
0:02:05.8]} 12... Bxb5 {[%clk 0:01:58.4]} 13. Qxb5 {[%clk 0:02:05.1]} 13... Bf6
{[%clk 0:01:55.7]} 14. Qxb7 {[%clk 0:01:57.3]} 14... Nd7 {[%clk 0:01:51.8]} 15.
Qxd5 {[%clk 0:01:48.5]} 15... Qc7 {[%clk 0:01:48.2]} 16. Nd4 {[%clk 0:01:44.1]}
16... Rad8 {[%clk 0:01:38.2]} 17. Qc6 {[%clk 0:01:21.1]} 17... Qe5 {[%clk
0:01:27.1]} 18. Qf3 {[%clk 0:01:20.8]} 18... Qg5 {[%clk 0:01:17.8]} 19. Qf4
{[%clk 0:01:11.3]} 19... Qg6 {[%clk 0:01:09.9]} 20. Qf5 {[%clk 0:01:03.8]} 20...
Qh6 {[%clk 0:01:05.9]} 21. Nc6 {[%clk 0:00:18.6]} 21... Be5 {[%clk 0:00:42.6]}
22. Nxd8 {[%clk 0:00:11]} 22... Bxh2+ {[%clk 0:00:38.4]} 23. Kf2 {[%clk
0:00:10.7]} 23... Qxe3# {[%clk 0:00:37.4]} 0-1

[Event "*** Titled Tuesday Blitz"]
[Site "Chess.com"]
[Date "2020.04.07"]
[Round "5"]
[White "The_Machine04"]
[Black "CarlosAlbornoz"]
[Result "0-1"]
[WhiteElo "2378"]
[BlackElo "2722"]
[TimeControl "180+1"]
[EndTime "13:55:13 PDT"]
[Termination "CarlosAlbornoz won by resignation"]

1. d4 {[%clk 0:03:00.9]} 1... Nf6 {[%clk 0:02:59.9]} 2. Bg5 {[%clk 0:03:01.3]}
2... c5 {[%clk 0:02:59.2]} 3. Bxf6 {[%clk 0:02:59.8]} 3... exf6 {[%clk 0:02:58]}
4. dxc5 {[%clk 0:02:58.9]} 4... Bxc5 {[%clk 0:02:57]} 5. e3 {[%clk 0:02:59.3]}
5... d5 {[%clk 0:02:51.8]} 6. Nf3 {[%clk 0:02:58.7]} 6... O-O {[%clk 0:02:51]}
7. Be2 {[%clk 0:02:57.9]} 7... Nc6 {[%clk 0:02:48.8]} 8. c3 {[%clk 0:02:57.4]}
8... Bg4 {[%clk 0:02:48]} 9. Nbd2 {[%clk 0:02:55]} 9... Re8 {[%clk 0:02:46.8]}
10. O-O {[%clk 0:02:53.2]} 10... a6 {[%clk 0:02:46.2]} 11. a4 {[%clk 0:02:49]}
11... Ba7 {[%clk 0:02:45.7]} 12. h3 {[%clk 0:02:46]} 12... Bh5 {[%clk 0:02:44]}
13. Nb3 {[%clk 0:02:42.5]} 13... Qd6 {[%clk 0:02:43.4]} 14. Nfd4 {[%clk
0:02:32]} 14... Bg6 {[%clk 0:02:37]} 15. Bf3 {[%clk 0:02:24.2]} 15... Ne5 {[%clk
0:02:30.5]} 16. Be2 {[%clk 0:02:16.4]} 16... Rad8 {[%clk 0:02:29.4]} 17. f4
{[%clk 0:02:10.5]} 17... Nc4 {[%clk 0:02:29.4]} 18. f5 {[%clk 0:01:43.3]} 18...
Nxe3 {[%clk 0:02:28]} 19. Qd2 {[%clk 0:01:38.8]} 19... Nxf5 {[%clk 0:02:23.2]}
20. Bf3 {[%clk 0:01:31.4]} 20... Ne3 {[%clk 0:02:19.1]} 21. Rfe1 {[%clk
0:01:29.9]} 21... Nc4 {[%clk 0:02:18.6]} 22. Qf2 {[%clk 0:01:28.3]} 22... Bb8
{[%clk 0:02:13.5]} 23. g4 {[%clk 0:01:26.8]} 23... Ne5 {[%clk 0:01:52]} 24. Rad1
{[%clk 0:01:24.4]} 24... Nd3 {[%clk 0:01:46.8]} 25. Rxe8+ {[%clk 0:01:23.5]}
25... Rxe8 {[%clk 0:01:47.7]} 26. Qd2 {[%clk 0:01:21.2]} 26... Nf4 {[%clk
0:01:26.6]} 27. Bg2 {[%clk 0:01:13.6]} 27... Nxg2 {[%clk 0:01:20.8]} 28. Qxg2
{[%clk 0:01:14.5]} 28... Be4 {[%clk 0:01:20.7]} 29. Qf2 {[%clk 0:01:14.5]} 29...
h5 {[%clk 0:01:15.4]} 30. Re1 {[%clk 0:01:13.1]} 30... hxg4 {[%clk 0:01:14.6]}
31. hxg4 {[%clk 0:01:11.6]} 31... Re5 {[%clk 0:01:09]} 32. Nd2 {[%clk 0:01:03]}
32... Rg5 {[%clk 0:01:08]} 33. Nf5 {[%clk 0:00:41.1]} 33... Rxg4+ {[%clk
0:00:56.2]} 34. Kf1 {[%clk 0:00:40.7]} 34... Bd3+ {[%clk 0:00:56]} 0-1

[Event "*** Titled Tuesday Blitz"]
[Site "Chess.com"]
[Date "2020.04.07"]
[Round "5"]
[White "CzechmVIII"]
[Black "vova-79"]
[Result "1/2-1/2"]
[WhiteElo "2241"]
[BlackElo "2424"]
[TimeControl "180+1"]
[EndTime "13:55:16 PDT"]
[Termination "Game drawn by repetition"]

1. e4 {[%clk 0:03:00.9]} 1... e6 {[%clk 0:02:59.7]} 2. d4 {[%clk 0:02:59.9]}
2... d5 {[%clk 0:02:59.8]} 3. Nc3 {[%clk 0:03:00]} 3... dxe4 {[%clk 0:02:59.9]}
4. Nxe4 {[%clk 0:02:59.3]} 4... Nd7 {[%clk 0:03:00.8]} 5. Nf3 {[%clk 0:02:58.7]}
5... Ngf6 {[%clk 0:03:01.7]} 6. Nxf6+ {[%clk 0:02:58.7]} 6... Nxf6 {[%clk
0:03:02.6]} 7. Bd3 {[%clk 0:02:58.8]} 7... c5 {[%clk 0:03:02.5]} 8. Qe2 {[%clk
0:02:55.4]} 8... cxd4 {[%clk 0:03:01]} 9. Bd2 {[%clk 0:02:55.6]} 9... Be7 {[%clk
0:02:22.7]} 10. O-O-O {[%clk 0:02:55.3]} 10... O-O {[%clk 0:02:23]} 11. g4
{[%clk 0:02:49.8]} 11... Qd5 {[%clk 0:02:15.7]} 12. Kb1 {[%clk 0:02:21.2]} 12...
Rd8 {[%clk 0:01:58.5]} 13. g5 {[%clk 0:02:17.2]} 13... Nd7 {[%clk 0:01:54.4]}
14. Be4 {[%clk 0:01:47.8]} 14... Qd6 {[%clk 0:01:39.3]} 15. h4 {[%clk
0:01:36.2]} 15... Nc5 {[%clk 0:01:35.9]} 16. Bb4 {[%clk 0:01:36.2]} 16... Qb6
{[%clk 0:01:30.2]} 17. Bxc5 {[%clk 0:01:30.8]} 17... Bxc5 {[%clk 0:01:29.6]} 18.
Qd3 {[%clk 0:01:29.1]} 18... Bd7 {[%clk 0:01:15]} 19. Bxh7+ {[%clk 0:01:26.9]}
19... Kf8 {[%clk 0:01:15.5]} 20. Be4 {[%clk 0:01:24.2]} 20... Bb5 {[%clk
0:01:13.2]} 21. Qd2 {[%clk 0:01:08.9]} 21... Be8 {[%clk 0:00:42.8]} 22. Ne5
{[%clk 0:01:05]} 22... Bb4 {[%clk 0:00:37.9]} 23. Qf4 {[%clk 0:00:53.8]} 23...
Bc3 {[%clk 0:00:35.8]} 24. b3 {[%clk 0:00:53.9]} 24... a5 {[%clk 0:00:20.3]} 25.
Ng6+ {[%clk 0:00:43.1]} 25... Kg8 {[%clk 0:00:19.6]} 26. Ne7+ {[%clk 0:00:43.3]}
26... Kf8 {[%clk 0:00:19.6]} 27. Ng6+ {[%clk 0:00:43.4]} 27... Kg8 {[%clk
0:00:19.9]} 28. Ne7+ {[%clk 0:00:43.6]} 28... Kf8 {[%clk 0:00:20.1]} 29. Ng6+
{[%clk 0:00:31.4]} 1/2-1/2

[Event "*** Titled Tuesday Blitz"]
[Site "Chess.com"]
[Date "2020.04.07"]
[Round "5"]
[White "DinaBelenkaya"]
[Black "jaskol95"]
[Result "0-1"]
[WhiteElo "2240"]
[BlackElo "2388"]
[TimeControl "180+1"]
[EndTime "13:55:19 PDT"]
[Termination "jaskol95 won by resignation"]

1. e4 {[%clk 0:03:00.9]} 1... e6 {[%clk 0:03:00.1]} 2. d4 {[%clk 0:02:56.3]}
2... d5 {[%clk 0:03:00.6]} 3. Nc3 {[%clk 0:02:54.2]} 3... Bb4 {[%clk 0:03:00]}
4. e5 {[%clk 0:02:52.4]} 4... Ne7 {[%clk 0:02:59.1]} 5. a3 {[%clk 0:02:48.7]}
5... Bxc3+ {[%clk 0:02:58.7]} 6. bxc3 {[%clk 0:02:48.3]} 6... c5 {[%clk
0:02:59.3]} 7. h4 {[%clk 0:02:38]} 7... Qc7 {[%clk 0:02:56.5]} 8. Bd2 {[%clk
0:02:32.4]} 8... Nbc6 {[%clk 0:02:54.5]} 9. Qg4 {[%clk 0:02:25.9]} 9... Nf5
{[%clk 0:02:48.4]} 10. Nf3 {[%clk 0:02:07.9]} 10... cxd4 {[%clk 0:02:00.8]} 11.
cxd4 {[%clk 0:02:03.6]} 11... Ncxd4 {[%clk 0:01:49.5]} 12. Nxd4 {[%clk
0:01:57.1]} 12... Qxe5+ {[%clk 0:01:49]} 13. Be3 {[%clk 0:01:44.2]} 13... Nxe3
{[%clk 0:01:49]} 14. fxe3 {[%clk 0:01:43.4]} 14... Qxe3+ {[%clk 0:01:48.4]} 15.
Ne2 {[%clk 0:01:34.8]} 15... O-O {[%clk 0:01:48.3]} 16. Qd4 {[%clk 0:01:28.1]}
16... Qh6 {[%clk 0:01:45.7]} 17. g3 {[%clk 0:00:57.5]} 17... Bd7 {[%clk
0:01:39.3]} 18. Bg2 {[%clk 0:00:36.9]} 18... e5 {[%clk 0:01:23.3]} 19. Qd2
{[%clk 0:00:34.9]} 19... Qg6 {[%clk 0:01:10.7]} 20. O-O {[%clk 0:00:32.3]} 20...
Bc6 {[%clk 0:01:08.3]} 21. c4 {[%clk 0:00:27.3]} 21... d4 {[%clk 0:00:58.9]} 22.
Bxc6 {[%clk 0:00:15]} 22... bxc6 {[%clk 0:00:59.8]} 23. Rab1 {[%clk 0:00:15.2]}
23... Rab8 {[%clk 0:00:58.6]} 24. c5 {[%clk 0:00:14.9]} 24... Rxb1 {[%clk
0:00:58]} 25. Rxb1 {[%clk 0:00:14.2]} 25... Qxb1+ {[%clk 0:00:58.9]} 26. Kg2
{[%clk 0:00:13.9]} 26... Qe4+ {[%clk 0:00:58.5]} 27. Kh2 {[%clk 0:00:13.7]}
27... Qd5 {[%clk 0:00:57.9]} 28. Qc1 {[%clk 0:00:12.9]} 28... f5 {[%clk
0:00:57.3]} 29. Ng1 {[%clk 0:00:09.2]} 29... f4 {[%clk 0:00:56.9]} 30. g4 {[%clk
0:00:07.5]} 30... e4 {[%clk 0:00:55.7]} 31. Ne2 {[%clk 0:00:05.7]} 31... d3
{[%clk 0:00:54.5]} 0-1

[Event "*** Titled Tuesday Blitz"]
[Site "Chess.com"]
[Date "2020.04.07"]
[Round "5"]
[White "Vadim_Biliy"]
[Black "medalja"]
[Result "0-1"]
[WhiteElo "2248"]
[BlackElo "2440"]
[TimeControl "180+1"]
[EndTime "13:55:23 PDT"]
[Termination "medalja won on time"]

1. d4 {[%clk 0:03:00.9]} 1... Nf6 {[%clk 0:02:57.1]} 2. Nf3 {[%clk 0:03:00.4]}
2... e6 {[%clk 0:02:57.2]} 3. e3 {[%clk 0:03:00.4]} 3... c5 {[%clk 0:02:57.1]}
4. Be2 {[%clk 0:03:00.3]} 4... Nc6 {[%clk 0:02:57.3]} 5. O-O {[%clk 0:02:59.9]}
5... b6 {[%clk 0:02:57.9]} 6. b3 {[%clk 0:02:59.5]} 6... Bb7 {[%clk 0:02:56.5]}
7. Bb2 {[%clk 0:02:59.3]} 7... cxd4 {[%clk 0:02:57.1]} 8. Nxd4 {[%clk 0:02:58]}
8... Be7 {[%clk 0:02:54.4]} 9. c4 {[%clk 0:02:56.3]} 9... O-O {[%clk 0:02:53.1]}
10. Nc3 {[%clk 0:02:54.8]} 10... Rc8 {[%clk 0:02:50]} 11. Rc1 {[%clk 0:02:46]}
11... Nxd4 {[%clk 0:02:49.2]} 12. Qxd4 {[%clk 0:02:44.1]} 12... Bc5 {[%clk
0:02:48.1]} 13. Qh4 {[%clk 0:02:42.3]} 13... Qe7 {[%clk 0:02:29]} 14. Rfd1
{[%clk 0:02:25.4]} 14... Rfd8 {[%clk 0:02:28.1]} 15. Na4 {[%clk 0:02:03.3]}
15... Ba3 {[%clk 0:02:23.3]} 16. Bd3 {[%clk 0:01:47]} 16... Bxb2 {[%clk
0:02:18.2]} 17. Nxb2 {[%clk 0:01:46.2]} 17... d5 {[%clk 0:02:18.5]} 18. cxd5
{[%clk 0:01:32]} 18... exd5 {[%clk 0:01:54.6]} 19. Bf5 {[%clk 0:01:26.3]} 19...
Rxc1 {[%clk 0:01:53.8]} 20. Rxc1 {[%clk 0:01:25.4]} 20... g6 {[%clk 0:01:52.5]}
21. Bh3 {[%clk 0:01:01.3]} 21... d4 {[%clk 0:01:24.1]} 22. exd4 {[%clk
0:00:53.3]} 22... Qd6 {[%clk 0:01:23.1]} 23. Rd1 {[%clk 0:00:42.9]} 23... Nd5
{[%clk 0:01:21.9]} 24. Nc4 {[%clk 0:00:41.6]} 24... Qc7 {[%clk 0:01:19.3]} 25.
Qh6 {[%clk 0:00:26.8]} 25... Nf4 {[%clk 0:01:06.3]} 26. Ne3 {[%clk 0:00:16.1]}
26... Rxd4 {[%clk 0:00:49.4]} 0-1